bitfinex-derivatives/quotes_BTCF0:USTF0_20250822
["timestamp","ask_amount","ask_price","bid_price","bid_amount"]
[1755899163889,0.96324271,117130.0,117120.0,1.29200297]
[1755899164387,0.99807271,117130.0,117120.0,1.29200297]
[1755899165189,0.99807271,117130.0,117120.0,0.84065425]
[1755899165390,0.99807271,117130.0,117120.0,1.04200297]
[1755899168092,0.99807271,117130.0,117120.0,0.59065425]
[1755899168293,0.99807271,117130.0,117120.0,1.04200297]
[1755899168588,0.99807271,117130.0,117120.0,0.68120297]
[1755899168795,0.99807271,117130.0,117120.0,1.04200297]
[1755899171196,0.99807271,117130.0,117120.0,1.00999297]
[1755899171683,0.99807271,117130.0,117120.0,1.04363297]
[1755899171886,1.44942143,117130.0,117120.0,1.04363297]
[1755899172088,0.96839271,117130.0,117120.0,1.49498169]
[1755899172494,0.96324271,117130.0,117120.0,1.49498169]
[1755899172691,0.99807271,117130.0,117120.0,1.49498169]
[1755899181303,0.99292271,117130.0,117120.0,1.49498169]
[1755899181810,0.96324271,117130.0,117120.0,1.49498169]
[1755899182211,0.99292271,117130.0,117120.0,1.49498169]
[1755899182511,0.99807271,117130.0,117120.0,1.49498169]
[1755899185817,0.19855271,117130.0,117120.0,1.49498169]
[1755899186413,0.19755271,117130.0,117120.0,1.49498169]
[1755899187920,0.19355271,117130.0,117120.0,1.49498169]
[1755899188113,0.19555271,117130.0,117120.0,1.49498169]
[1755899188613,0.19355271,117130.0,117120.0,1.49498169]
[1755899188817,0.19555271,117130.0,117120.0,1.49498169]
[1755899190717,0.16072271,117130.0,117120.0,1.49498169]
[1755899190921,0.08985271,117130.0,117120.0,1.49498169]
[1755899193319,0.12730271,117130.0,117120.0,1.49498169]
[1755899193519,0.17994271,117130.0,117120.0,1.49498169]
[1755899193721,0.15026271,117130.0,117120.0,1.49498169]
[1755899195320,0.10538271,117130.0,117120.0,1.49498169]
[1755899195521,0.10538271,117130.0,117120.0,1.50343466]
[1755899197222,0.12730271,117130.0,117120.0,1.50343466]
[1755899197821,0.19334271,117130.0,117120.0,1.49498169]
[1755899203519,0.18819271,117130.0,117120.0,1.49498169]
[1755899209034,0.15851271,117130.0,117120.0,1.49498169]
[1755899209234,0.15026271,117130.0,117120.0,1.49498169]
[1755899211632,0.10538271,117130.0,117120.0,1.49498169]
[1755899215647,0.10538271,117130.0,117120.0,1.58036769]
[1755899216148,0.10538271,117130.0,117120.0,1.62649268]
[1755899217148,0.10338271,117130.0,117120.0,1.62649268]
[1755899217347,0.10438271,117130.0,117120.0,1.62649268]
[1755899218043,0.10238271,117130.0,117120.0,1.62649268]
[1755899218350,0.08785271,117130.0,117120.0,1.62649268]
[1755899219653,0.08685271,117130.0,117120.0,1.62649268]
[1755899219846,0.08885271,117130.0,117120.0,1.62649268]
[1755899220452,0.08685271,117130.0,117120.0,1.62649268]
[1755899220647,0.08785271,117130.0,117120.0,1.62649268]
[1755899221442,0.08785271,117130.0,117120.0,0.72379524]
[1755899221647,0.16229271,117130.0,117120.0,1.54110668]
[1755899221851,0.19197271,117130.0,117120.0,2.33934668]
[1755899222052,0.18682271,117130.0,117120.0,2.33934668]
[1755899222255,0.15714271,117130.0,117120.0,2.42473268]
[1755899222452,0.14889271,117130.0,117120.0,2.42473268]
[1755899222651,0.08785271,117130.0,117120.0,2.42473268]
[1755899226758,0.02241,117150.0,117140.0,0.12007]
[1755899226958,0.11695,117150.0,117140.0,0.94931801]
[1755899227159,0.11695,117150.0,117140.0,1.74735801]
[1755899227854,0.03461,117150.0,117140.0,1.74735801]
[1755899228054,0.03761,117150.0,117140.0,1.74735801]
[1755899228461,0.09043,117150.0,117140.0,1.74735801]
[1755899228661,0.1316096,117150.0,117140.0,1.74735801]
[1755899228861,0.20106584,117150.0,117140.0,1.74735801]
[1755899229658,0.65241456,117150.0,117140.0,1.74735801]
[1755899230064,0.65241456,117150.0,117140.0,1.29600929]
[1755899230258,0.65241456,117150.0,117140.0,1.04516001]
[1755899230460,0.20106584,117150.0,117140.0,1.04516001]
[1755899230659,0.65241456,117150.0,117140.0,1.04516001]
[1755899231061,0.20106584,117150.0,117140.0,1.04516001]
[1755899231261,0.90241456,117150.0,117140.0,0.99785001]
[1755899231562,0.90241456,117150.0,117140.0,1.03153001]
[1755899231763,0.90241456,117150.0,117140.0,1.04516001]
[1755899231764,0.16854584,117150.0,117140.0,1.04516001]
[1755899232466,0.20106584,117150.0,117140.0,1.04516001]
[1755899234773,0.15435584,117150.0,117140.0,1.04516001]
[1755899234968,0.13167584,117150.0,117140.0,1.04516001]
[1755899235269,0.13167584,117150.0,117140.0,0.59381129]
[1755899235464,0.13167584,117150.0,117140.0,1.04516001]
[1755899235670,0.16854584,117150.0,117140.0,1.04516001]
[1755899237375,0.20106584,117150.0,117140.0,0.59381129]
[1755899237675,0.16854584,117150.0,117140.0,1.04516001]
[1755899238477,0.20106584,117150.0,117140.0,1.04516001]
[1755899238672,0.11572584,117150.0,117140.0,1.04516001]
[1755899238872,0.13302508,117150.0,117140.0,1.04516001]
[1755899242078,0.13302508,117150.0,117140.0,0.59381129]
[1755899242271,0.13302508,117150.0,117140.0,1.04516001]
[1755899243780,0.13302508,117150.0,117140.0,0.59381129]
[1755899243975,0.13302508,117150.0,117140.0,1.04516001]
[1755899244171,0.12382508,117150.0,117140.0,1.04516001]
[1755899244377,0.10141508,117150.0,117140.0,1.04516001]
[1755899247481,0.11069508,117150.0,117140.0,1.04516001]
[1755899247681,0.13258508,117150.0,117140.0,1.04516001]
[1755899252193,0.6695638,117150.0,117140.0,1.04516001]
[1755899252391,0.21821508,117150.0,117140.0,1.04516001]
[1755899252592,0.6695638,117150.0,117140.0,1.04516001]
[1755899252891,0.6695638,117150.0,117140.0,0.59381129]
[1755899253092,0.6695638,117150.0,117140.0,1.04516001]
[1755899253590,0.21821508,117150.0,117140.0,1.04516001]
[1755899253792,0.6695638,117150.0,117140.0,1.04516001]
[1755899254988,0.6695638,117150.0,117140.0,0.59381129]
[1755899255294,0.6695638,117150.0,117140.0,1.04516001]
[1755899255996,0.21821508,117150.0,117140.0,1.04516001]
[1755899256387,0.6695638,117150.0,117140.0,1.04516001]
[1755899256893,0.6695638,117150.0,117140.0,0.59381129]
[1755899257196,0.6695638,117150.0,117140.0,1.04516001]
[1755899258191,0.65226456,117150.0,117140.0,1.07587068]
[1755899259095,0.65226456,117150.0,117140.0,1.87323068]
[1755899259590,0.20091584,117150.0,117140.0,1.87323068]
[1755899259797,0.65226456,117150.0,117140.0,1.87323068]
[1755899261896,0.65126456,117150.0,117140.0,1.87323068]
[1755899262099,0.16719584,117150.0,117140.0,1.87323068]
[1755899262292,0.19991584,117150.0,117140.0,1.42188196]
[1755899262495,0.19991584,117150.0,117140.0,1.87323068]
[1755899262692,0.20091584,117150.0,117140.0,1.87323068]
[1755899262894,0.16819584,117150.0,117140.0,1.87323068]
[1755899263294,0.15405584,117150.0,117140.0,1.87323068]
[1755899263898,0.15105584,117150.0,117140.0,1.87323068]
[1755899264097,0.15305584,117150.0,117140.0,1.42188196]
[1755899264298,0.15005584,117150.0,117140.0,1.87323068]
[1755899264498,0.15205584,117150.0,117140.0,1.87323068]
[1755899265398,0.15205584,117150.0,117140.0,1.07587068]
[1755899265596,0.15205584,117150.0,117140.0,1.85597139]
[1755899268290,0.15205584,117150.0,117140.0,1.40462267]
[1755899268596,0.15205584,117150.0,117140.0,1.85597139]
[1755899269406,0.12873584,117150.0,117140.0,1.05877139]
[1755899269602,0.12873584,117150.0,117140.0,1.85589139]
[1755899272506,0.10400584,117150.0,117140.0,1.85589139]
[1755899272904,0.11328584,117150.0,117140.0,1.85589139]
[1755899275403,0.56463456,117150.0,117140.0,0.60742267]
[1755899275613,0.19891584,117150.0,117140.0,0.60742267]
[1755899275909,0.61754456,117150.0,117140.0,1.05877139]
[1755899276205,0.65026456,117150.0,117140.0,0.60742267]
[1755899276406,0.65026456,117150.0,117140.0,1.05877139]
[1755899276598,0.19891584,117150.0,117140.0,1.05877139]
[1755899276906,0.65026456,117150.0,117140.0,1.05877139]
[1755899277104,0.19891584,117150.0,117140.0,1.05877139]
[1755899277309,0.65026456,117150.0,117140.0,1.05877139]
[1755899277803,0.65026456,117150.0,117140.0,0.60742267]
[1755899278006,0.65026456,117150.0,117140.0,1.05877139]
[1755899278406,0.16619584,117150.0,117140.0,1.05877139]
[1755899278612,0.61754456,117150.0,117140.0,0.60742267]
[1755899278804,0.19838584,117150.0,117140.0,1.05877139]
[1755899279609,0.18424584,117150.0,117140.0,1.05877139]
[1755899279905,0.15205584,117150.0,117140.0,1.05877139]
[1755899280308,0.16931163,117150.0,117140.0,1.02806072]
[1755899280807,0.14599163,117150.0,117140.0,0.576712]
[1755899281007,0.14599163,117150.0,117140.0,1.02806072]
[1755899281908,0.17818163,117150.0,117140.0,1.02806072]
[1755899282112,0.66675035,117150.0,117140.0,0.576712]
[1755899282311,0.66675035,117150.0,117140.0,1.02806072]
[1755899282913,0.21540163,117150.0,117140.0,1.02806072]
[1755899283110,0.66675035,117150.0,117140.0,1.02806072]
[1755899283706,0.66675035,117150.0,117140.0,0.576712]
[1755899284003,0.66675035,117150.0,117140.0,1.02806072]
[1755899284620,0.21540163,117150.0,117140.0,1.02806072]
[1755899285415,0.66675035,117150.0,117140.0,1.02806072]
[1755899285615,0.21540163,117150.0,117140.0,1.02806072]
[1755899285915,0.66675035,117150.0,117140.0,1.02806072]
[1755899287213,0.07571203,117150.0,117140.0,1.02806072]
[1755899287518,0.02368,117170.0,117160.0,0.0838]
[1755899287719,1.28540872,117180.0,117160.0,0.87694584]
[1755899287920,0.85238,117180.0,117170.0,0.53514872]
[1755899288520,0.85238,117180.0,117170.0,0.89594872]
[1755899288914,0.86079168,117180.0,117170.0,0.89594872]
[1755899289315,0.80525168,117180.0,117170.0,0.89594872]
[1755899289614,0.07976105,117180.0,117170.0,1.69418872]
[1755899290216,0.08276105,117180.0,117170.0,1.79003072]
[1755899290726,0.08076105,117180.0,117170.0,1.79003072]
[1755899291020,0.07876105,117180.0,117170.0,1.79003072]
[1755899291220,0.07034937,117180.0,117170.0,1.79003072]
[1755899291719,0.06834937,117180.0,117170.0,1.79003072]
[1755899291922,0.07034937,117180.0,117170.0,1.79003072]
[1755899292421,0.11697,117200.0,117190.0,0.06483]
[1755899292622,0.11697,117200.0,117190.0,0.87697872]
[1755899293116,0.05554,117200.0,117190.0,0.87697872]
[1755899293316,1.28248153,117210.0,117190.0,1.23777872]
[1755899293515,0.83113281,117210.0,117200.0,0.87697872]
[1755899293821,0.83113281,117210.0,117200.0,0.42563]
[1755899294019,0.84040281,117210.0,117200.0,0.87697872]
[1755899294319,0.86299281,117210.0,117200.0,0.87697872]
[1755899294521,0.06799281,117210.0,117200.0,0.87697872]
[1755899295017,0.06399281,117210.0,117200.0,0.87697872]
[1755899295215,0.06899281,117210.0,117200.0,0.97282072]
[1755899295620,0.07399281,117210.0,117200.0,0.97282072]
[1755899295923,0.07399281,117210.0,117200.0,0.521472]
[1755899296225,0.07399281,117210.0,117200.0,0.97282072]
[1755899296727,0.01845281,117210.0,117200.0,0.97282072]
[1755899296919,0.01,117210.0,117200.0,1.42416944]
[1755899297626,0.03368,117210.0,117200.0,1.42416944]
[1755899298329,0.03368,117210.0,117200.0,0.92194725]
[1755899299027,0.02868,117210.0,117200.0,0.92194725]
[1755899299229,0.02768,117210.0,117200.0,0.92194725]
[1755899299530,0.03168,117210.0,117200.0,0.92194725]
[1755899299825,0.05427,117210.0,117200.0,0.92194725]
[1755899300624,0.05027,117210.0,117200.0,0.92194725]
[1755899300925,0.06100569,117210.0,117200.0,0.92194725]
[1755899301626,0.05227,117210.0,117200.0,0.521472]
[1755899301826,0.05227,117210.0,117200.0,0.92194725]
[1755899302228,0.02968,117210.0,117200.0,0.93942635]
[1755899304730,0.006,117210.0,117200.0,0.93942635]
[1755899308932,0.02961,117210.0,117200.0,0.93942635]
[1755899309130,0.006,117210.0,117200.0,0.93942635]
[1755899309532,0.006,117210.0,117200.0,0.5389511]
[1755899309728,0.006,117210.0,117200.0,0.93942635]
[1755899311327,0.16907352,117220.0,117210.0,0.04785]
[1755899311532,0.18642534,117220.0,117210.0,1.60820525]
[1755899311929,0.19268352,117220.0,117210.0,1.60820525]
[1755899312333,0.21004199,117220.0,117210.0,1.60820525]
[1755899312832,0.21404199,117220.0,117210.0,1.60820525]
[1755899313037,0.14496847,117220.0,117210.0,1.60820525]
[1755899314135,0.14696847,117220.0,117210.0,1.60820525]
[1755899314932,0.14696847,117220.0,117210.0,1.85820525]
[1755899315141,0.12335847,117220.0,117210.0,1.85820525]
[1755899315334,0.12335847,117220.0,117210.0,1.95404725]
[1755899315524,0.14696847,117220.0,117210.0,1.95404725]
[1755899315729,0.12335847,117220.0,117210.0,1.95404725]
[1755899316231,0.002,117220.0,117210.0,2.4398429]
[1755899316431,0.02361,117250.0,117240.0,0.0852985]
[1755899316636,0.02361,117250.0,117240.0,2.00701375]
[1755899317444,0.02361,117250.0,117240.0,1.92171525]
[1755899317633,0.0596,117250.0,117240.0,1.92171525]
[1755899319340,0.0616,117250.0,117240.0,1.92171525]
[1755899320241,0.09567,117250.0,117240.0,2.01755725]
[1755899320435,0.07722,117250.0,117240.0,2.01755725]
[1755899320644,0.12575,117250.0,117240.0,2.01851725]
[1755899320844,0.12575,117250.0,117240.0,1.21791725]
[1755899321035,0.12575,117250.0,117240.0,2.01879725]
[1755899321947,0.12575,117250.0,117240.0,1.21791725]
[1755899322238,0.37575,117250.0,117240.0,1.21791725]
[1755899322433,0.37575,117250.0,117240.0,2.01903725]
[1755899325347,0.37575,117250.0,117240.0,2.01939725]
[1755899325545,0.37575,117250.0,117240.0,1.21791725]
[1755899325942,0.37575,117250.0,117240.0,0.456642]
[1755899326640,0.37075,117250.0,117240.0,0.456642]
[1755899326845,0.37275,117250.0,117240.0,0.456642]
[1755899332650,0.0586,117250.0,117240.0,0.85711725]
[1755899333251,0.12275,117250.0,117240.0,0.85711725]
[1755899333445,0.12275,117250.0,117240.0,1.21791725]
[1755899333648,0.12275,117250.0,117240.0,0.817442]
[1755899333954,0.07422,117250.0,117240.0,1.21791725]
[1755899334149,0.0586,117250.0,117240.0,1.21791725]
[1755899336455,0.003,117250.0,117240.0,1.21791725]
[1755899336657,0.003,117250.0,117240.0,1.97659579]
[1755899336957,0.003,117250.0,117240.0,2.00712818]
[1755899338046,0.003,117250.0,117240.0,2.01551767]
[1755899338251,0.002,117250.0,117240.0,2.01551767]
[1755899338461,0.002,117250.0,117240.0,1.99261338]
[1755899338861,0.07227,117270.0,117250.0,0.0852905]
[1755899339062,0.12153,117270.0,117260.0,1.92395525]
[1755899339863,0.18937346,117270.0,117260.0,1.92395525]
[1755899340253,0.18937346,117270.0,117260.0,2.01979725]
[1755899341259,0.19037346,117270.0,117260.0,2.01979725]
[1755899341660,0.19237346,117270.0,117260.0,2.01979725]
[1755899341965,0.19337346,117270.0,117260.0,2.01979725]
[1755899342363,0.19437346,117270.0,117260.0,2.01979725]
[1755899346464,0.19437346,117270.0,117260.0,2.04268591]
[1755899347459,0.19237346,117270.0,117260.0,1.64221066]
[1755899347661,0.19237346,117270.0,117260.0,2.04368591]
[1755899347964,0.18937346,117270.0,117260.0,2.04868591]
[1755899348473,0.18937346,117270.0,117260.0,2.04368591]
[1755899348771,0.18937346,117270.0,117260.0,2.02179725]
[1755899348968,0.18937346,117270.0,117260.0,2.04468591]
[1755899349163,0.18937346,117270.0,117260.0,1.24280591]
[1755899349373,0.18937346,117270.0,117260.0,1.619802]
[1755899349570,0.18937346,117270.0,117260.0,1.64269066]
[1755899349872,0.18937346,117270.0,117260.0,1.619802]
[1755899350461,0.18937346,117270.0,117260.0,1.6602799]
[1755899351464,0.18937346,117270.0,117260.0,2.06075515]
[1755899351861,0.18937346,117270.0,117260.0,2.06775515]
[1755899352074,0.18937346,117270.0,117260.0,2.06775904]
[1755899352672,0.18937346,117270.0,117260.0,2.06375904]
[1755899352876,0.18937346,117270.0,117260.0,2.06775904]
[1755899354378,0.18937346,117270.0,117260.0,1.66728379]
[1755899358180,0.15472346,117270.0,117260.0,1.66728379]
[1755899358676,0.83984871,117270.0,117260.0,0.48853455]
[1755899358871,1.63892871,117270.0,117260.0,0.48853455]
[1755899359177,1.63892871,117270.0,117260.0,0.465642]
[1755899360184,1.63892871,117270.0,117260.0,0.464642]
[1755899360966,1.63892871,117270.0,117260.0,0.103842]
[1755899361171,1.63892871,117270.0,117260.0,0.102842]
[1755899362676,1.23845346,117270.0,117260.0,0.102842]
[1755899363178,1.63892871,117270.0,117260.0,0.102842]
[1755899364779,0.18937346,117270.0,117260.0,0.8870098]
[1755899364981,0.18937346,117270.0,117260.0,0.12573455]
[1755899365575,0.83984871,117270.0,117260.0,0.12573455]
[1755899366282,0.83984871,117270.0,117260.0,0.14912725]
[1755899369180,0.83984871,117270.0,117260.0,0.1262347]
[1755899369577,0.83984871,117270.0,117260.0,0.102842]
[1755899369886,0.58984871,117270.0,117260.0,0.102842]
[1755899370591,0.18937346,117270.0,117260.0,0.102842]
[1755899370890,0.58984871,117270.0,117260.0,0.102842]
[1755899375586,0.18937346,117270.0,117260.0,0.102842]
[1755899375779,0.58984871,117270.0,117260.0,0.102842]
[1755899376588,0.18937346,117270.0,117260.0,0.102842]
[1755899376880,0.58984871,117270.0,117260.0,0.102842]
[1755899377382,0.95064871,117270.0,117260.0,0.102842]
[1755899385192,1.20064871,117270.0,117260.0,0.027842]
[1755899385689,0.07075,117260.0,117250.0,0.02289255]
[1755899385995,1.67696525,117260.0,117250.0,0.02289255]
[1755899386292,1.85621525,117260.0,117250.0,0.02294785]
[1755899386484,1.85621525,117260.0,117240.0,0.46257239]
[1755899386485,1.85621525,117260.0,117240.0,0.12472024]
[1755899386687,0.44785525,117250.0,117240.0,0.17162024]
[1755899386988,0.11813,117250.0,117240.0,0.14108785]
[1755899387885,0.11813,117250.0,117240.0,0.14608785]
[1755899388083,0.51860525,117250.0,117240.0,0.09736785]
[1755899388397,0.51860525,117250.0,117240.0,0.07442]
[1755899388590,0.87940525,117250.0,117240.0,0.07442]
[1755899388787,0.87940525,117250.0,117240.0,0.174262]
[1755899388994,1.12940525,117250.0,117240.0,0.104842]
[1755899389694,1.12940525,117250.0,117240.0,0.102842]
[1755899390202,1.12940525,117250.0,117240.0,0.052842]
[1755899394609,0.72893,117250.0,117240.0,0.052842]
[1755899394804,1.12940525,117250.0,117240.0,0.052842]
[1755899395107,1.12940525,117250.0,117240.0,0.051842]
[1755899395603,1.13240525,117250.0,117240.0,0.051842]
[1755899396407,1.13240525,117250.0,117240.0,0.049842]
[1755899396605,1.13240525,117250.0,117240.0,0.050842]
[1755899399509,1.21970525,117250.0,117240.0,0.050842]
[1755899401207,0.74848,117250.0,117220.0,0.0373]
[1755899401413,1.27687,117240.0,117230.0,0.06349]
[1755899401715,1.27687,117240.0,117230.0,0.11749]
[1755899402513,1.67734525,117240.0,117230.0,0.11749]
[1755899402716,1.67734525,117240.0,117230.0,0.0706]
[1755899403115,1.67734525,117240.0,117230.0,0.04651]
[1755899404316,1.67734525,117240.0,117230.0,0.142352]
[1755899404704,1.92734525,117240.0,117230.0,0.097842]
[1755899404910,2.3278205,117240.0,117230.0,0.097842]
[1755899405714,2.41770826,117240.0,117210.0,0.07304]
[1755899405914,0.51922525,117220.0,117210.0,0.11955]
[1755899406213,1.31654525,117220.0,117210.0,0.11955]
[1755899406813,1.31654525,117220.0,117210.0,0.12155]
[1755899407014,1.31654525,117220.0,117210.0,0.12555]
[1755899407608,1.31654525,117220.0,117210.0,0.08941]
[1755899407914,1.67734525,117220.0,117210.0,0.12555]
[1755899409010,1.67734525,117220.0,117210.0,0.150412]
[1755899409817,1.27687,117220.0,117210.0,0.182552]
[1755899410016,1.67734525,117220.0,117210.0,0.150412]
[1755899410214,1.67734525,117220.0,117210.0,0.103902]
[1755899414022,1.27687,117220.0,117210.0,0.103902]
[1755899414223,1.67734525,117220.0,117210.0,0.103902]
[1755899415119,1.27687,117220.0,117210.0,0.103902]
[1755899415318,1.67734525,117220.0,117210.0,0.103902]
[1755899415623,1.68589272,117220.0,117210.0,0.103902]
[1755899419122,1.93589272,117220.0,117210.0,0.103902]
[1755899419327,2.02768816,117220.0,117210.0,0.103902]
[1755899420227,2.02768816,117220.0,117210.0,0.099902]
[1755899420429,2.02768816,117220.0,117210.0,0.098902]
[1755899420628,2.02768816,117220.0,117210.0,0.001]
[1755899420827,2.02768816,117220.0,117190.0,0.08535]
[1755899420828,0.09594,117200.0,117190.0,0.08535]
[1755899421032,0.09594,117200.0,117190.0,0.08435]
[1755899421033,1.65465525,117200.0,117190.0,0.08435]
[1755899421627,1.9979105,117200.0,117180.0,0.02387]
[1755899421931,0.85721525,117190.0,117180.0,0.0934]
[1755899422425,0.85721525,117190.0,117180.0,0.06126]
[1755899422621,0.85721525,117190.0,117180.0,0.0934]
[1755899422827,0.96682599,117190.0,117180.0,0.06426]
[1755899423026,0.96682599,117190.0,117180.0,0.08835]
[1755899423224,0.96682599,117190.0,117180.0,0.04632]
[1755899423531,0.90960599,117190.0,117180.0,0.003]
[1755899424126,0.96682599,117190.0,117180.0,0.188192]
[1755899424834,0.96682599,117190.0,117180.0,0.102842]
[1755899425829,0.96682599,117190.0,117180.0,0.158282]
[1755899426622,0.96682599,117190.0,117180.0,0.111962]
[1755899426832,0.96682599,117190.0,117180.0,0.158282]
[1755899427534,0.96682599,117190.0,117180.0,0.187662]
[1755899427928,0.96682599,117190.0,117180.0,0.102842]
[1755899429531,0.96682599,117190.0,117180.0,0.099842]
[1755899430135,0.56635074,117190.0,117180.0,0.123082]
[1755899430336,0.96682599,117190.0,117180.0,0.098842]
[1755899430638,0.96682599,117190.0,117180.0,0.132632]
[1755899430932,0.96682599,117190.0,117180.0,0.098842]
[1755899433228,0.56635074,117190.0,117180.0,0.098842]
[1755899433435,0.96682599,117190.0,117180.0,0.098842]
[1755899437537,1.05216769,117190.0,117180.0,0.0334668]
[1755899437737,0.1814096,117180.0,117170.0,0.0869]
[1755899437945,1.74404485,117180.0,117170.0,0.07268]
[1755899438130,1.74404485,117180.0,117170.0,0.0869]
[1755899439040,1.74404485,117180.0,117170.0,0.0889]
[1755899439238,0.085357,117170.0,117160.0,0.02373]
[1755899439445,0.94269225,117170.0,117160.0,0.0869]
[1755899439642,0.94269225,117170.0,117160.0,0.12076]
[1755899440644,0.94269225,117170.0,117160.0,0.12376]
[1755899440944,0.94269225,117170.0,117160.0,0.219602]
[1755899441844,0.94269225,117170.0,117160.0,0.185742]
[1755899442146,0.94269225,117170.0,117160.0,0.187742]
[1755899442539,0.94269225,117170.0,117160.0,0.157872]
[1755899443040,0.542217,117170.0,117160.0,0.157872]
[1755899443241,0.94269225,117170.0,117160.0,0.157872]
[1755899443637,0.94269225,117170.0,117160.0,0.100842]
[1755899443848,0.94269225,117170.0,117160.0,0.157872]
[1755899444039,0.94269225,117170.0,117160.0,0.172092]
[1755899444649,0.94269225,117170.0,117160.0,0.157872]
[1755899445148,0.94269225,117170.0,117160.0,0.134632]
[1755899445349,0.94269225,117170.0,117160.0,0.157872]
[1755899445646,0.542217,117170.0,117160.0,0.191732]
[1755899445851,0.94269225,117170.0,117160.0,0.219602]
[1755899447048,0.94269225,117170.0,117160.0,0.216602]
[1755899447342,0.94269225,117170.0,117160.0,0.218602]
[1755899447949,0.94269225,117170.0,117160.0,0.131632]
[1755899448335,0.94269225,117170.0,117160.0,0.154872]
[1755899448749,0.94269225,117170.0,117160.0,0.169092]
[1755899449750,0.94269225,117170.0,117160.0,0.154872]
[1755899450344,0.9934288,117170.0,117160.0,0.154872]
[1755899453170,0.9934288,117170.0,117160.0,0.131632]
[1755899453350,0.0156,117150.0,117140.0,0.10661542]
[1755899453655,2.1127136,117150.0,117140.0,0.10661542]
[1755899455549,2.1127136,117150.0,117140.0,0.10761542]
[1755899455956,2.12133095,117150.0,117140.0,0.10761542]
[1755899456356,2.12133095,117150.0,117140.0,0.10961542]
[1755899456551,2.12133095,117150.0,117140.0,0.098842]
[1755899456854,2.12133095,117150.0,117140.0,0.131592]
[1755899457053,1.21890735,117150.0,117140.0,0.131592]
[1755899457359,2.12133095,117150.0,117140.0,0.185762]
[1755899457544,2.12133095,117150.0,117140.0,0.219672]
[1755899457545,1.21890735,117150.0,117140.0,0.219672]
[1755899457747,2.12133095,117150.0,117140.0,0.219672]
[1755899459457,2.12133095,117150.0,117140.0,0.185762]
[1755899460760,2.12133095,117150.0,117140.0,0.171172]
[1755899461458,2.12133095,117150.0,117140.0,0.185762]
[1755899461755,1.21890735,117150.0,117140.0,0.219672]
[1755899461957,2.12133095,117150.0,117140.0,0.219672]
[1755899464561,1.21890735,117150.0,117140.0,0.219672]
[1755899464756,2.12133095,117150.0,117140.0,0.219672]
[1755899468652,2.12133095,117150.0,117140.0,0.171172]
[1755899468852,2.12133095,117150.0,117140.0,0.131592]
[1755899469154,0.03998,117140.0,117120.0,0.01459]
[1755899469356,0.4911918,117130.0,117120.0,0.08637]
[1755899469555,0.4911918,117130.0,117120.0,0.12028]
[1755899470262,0.03998,117130.0,117120.0,0.12028]
[1755899470760,0.4911918,117130.0,117120.0,0.12028]
[1755899471560,0.4911918,117130.0,117120.0,0.12328]
[1755899472153,0.4911918,117130.0,117120.0,0.12628]
[1755899472760,0.03998,117130.0,117120.0,0.12328]
[1755899472961,0.03998,117130.0,117120.0,0.12628]
[1755899472962,0.4911918,117130.0,117120.0,0.12628]
[1755899473155,0.03998,117130.0,117120.0,0.12628]
[1755899473463,0.87398,117130.0,117120.0,0.12628]
[1755899473661,1.39519281,117130.0,117120.0,0.12628]
[1755899473860,0.94398101,117130.0,117120.0,0.12628]
[1755899474359,1.39519281,117130.0,117120.0,0.12628]
[1755899475163,0.94398101,117130.0,117120.0,0.12628]
[1755899475363,1.39519281,117130.0,117120.0,0.12628]
[1755899476166,1.39519281,117130.0,117120.0,0.09237]
[1755899476368,1.39519281,117130.0,117120.0,0.12628]
[1755899477263,0.94398101,117130.0,117120.0,0.12628]
[1755899477565,1.39519281,117130.0,117120.0,0.12628]
[1755899479066,0.94398101,117130.0,117120.0,0.12628]
[1755899479265,1.39519281,117130.0,117120.0,0.09237]
[1755899479964,1.39519281,117130.0,117120.0,0.0382]
[1755899480662,0.94398101,117130.0,117120.0,0.0382]
[1755899480864,1.39519281,117130.0,117120.0,0.0382]
[1755899483369,1.75599281,117130.0,117120.0,0.0382]
[1755899484572,1.86860118,117130.0,117120.0,0.0382]
[1755899486473,1.86860118,117130.0,117120.0,0.09659]
[1755899486664,1.86860118,117130.0,117120.0,0.0382]
[1755899487765,1.41738938,117130.0,117120.0,0.0382]
[1755899487971,1.86860118,117130.0,117120.0,0.006]
[1755899488367,2.31981298,117130.0,117120.0,0.006]
[1755899489474,1.41738938,117130.0,117120.0,0.006]
[1755899489678,2.31981298,117130.0,117120.0,0.006]
[1755899492675,1.41738938,117130.0,117120.0,0.006]
[1755899492876,2.31981298,117130.0,117120.0,0.006]
[1755899493376,1.41738938,117130.0,117120.0,0.006]
[1755899493576,2.31981298,117130.0,117120.0,0.006]
[1755899497877,2.31981298,117130.0,117120.0,0.003]
[1755899498078,2.31981298,117130.0,117120.0,0.001]
[1755899498281,2.31981298,117130.0,117120.0,0.002]
[1755899499375,2.31981298,117130.0,117100.0,0.4316]
[1755899499579,2.31981298,117130.0,117100.0,0.48123]
[1755899499580,0.4903618,117110.0,117100.0,0.48123]
[1755899499782,1.3219218,117110.0,117100.0,0.48123]
[1755899499980,1.3219218,117110.0,117100.0,0.12043]
[1755899500888,1.3219218,117110.0,117100.0,0.08987]
[1755899501091,1.3219218,117110.0,117100.0,0.12643]
[1755899501280,1.3219218,117110.0,117100.0,0.34287]
[1755899501476,1.3219218,117110.0,117100.0,0.37643]
[1755899502183,1.3219218,117110.0,117100.0,0.09287]
[1755899502384,1.3219218,117110.0,117100.0,0.12643]
[1755899503985,1.3219218,117110.0,117100.0,0.05405]
[1755899504190,1.6827218,117110.0,117100.0,0.03798]
[1755899506494,1.6827218,117110.0,117100.0,0.01521]
[1755899506790,1.6827218,117110.0,117100.0,0.006]
[1755899508492,1.6827218,117110.0,117100.0,0.003]
[1755899511686,1.6827218,117110.0,117100.0,0.03498]
[1755899511887,2.1339336,117110.0,117100.0,0.003]
[1755899512688,1.6827218,117110.0,117100.0,0.003]
[1755899518393,2.3839336,117110.0,117100.0,0.003]
[1755899519302,2.3603236,117110.0,117080.0,0.46291]
[1755899519504,0.9178936,117090.0,117080.0,0.47905]
[1755899519705,1.7651836,117090.0,117080.0,0.47905]
[1755899521102,1.7651836,117090.0,117080.0,0.48205]
[1755899521303,1.7651836,117090.0,117080.0,0.48505]
[1755899521914,1.7651836,117090.0,117080.0,0.48205]
[1755899522215,1.7651836,117090.0,117080.0,0.48505]
[1755899522415,1.7651836,117090.0,117080.0,0.73505]
[1755899523017,1.7651836,117090.0,117080.0,0.37425]
[1755899524717,1.77367102,117090.0,117080.0,0.37425]
[1755899525419,1.77367102,117090.0,117080.0,0.12425]
[1755899529423,1.77367102,117090.0,117080.0,0.09069]